Cogmind - Beta 10.1 @@@ ROGUE MODE // 2020.10.20 @ 03:20:19 Player: Tmvn Result: Destroyed by as-71940 with Assembled Blade Performance ------------- Evolutions (0) 0 Regions Visited (2) 400 Robots Destroyed (19) 95 Value Destroyed (481) 481 Prototype IDs (2) 40 Alien Tech Used (0) 0 Bonus (0) 0 TOTAL SCORE: 1016 Bonus ------- None Cogmind --------- Core Integrity 0/250 Matter 292/300 Energy 125/125 System Corruption 0% Temperature Cool (25) Movement Rolling (110) Ox3 Location -10/Mines Parts ------- > --- POWER (1) -------- Light Ion Engine > --- PROPULSION (2) --- Light Treads Wheel > --- UTILITY (2) ------ Large Storage Unit Large Storage Unit > --- WEAPON (2) ------- Small Laser Light Cannon > --- INVENTORY (16) --- Ion Engine Ion Engine Light Ion Engine Light Treads Wheel Wheel Sensor Array Propulsion Shielding Beam Cannon Light Cannon Maul Peak State ------------ > --- POWER ------------ Light Ion Engine > --- PROPULSION ------- Light Treads Wheel > --- UTILITY ---------- Large Storage Unit Large Storage Unit > --- WEAPON ----------- Small Laser Light Cannon > --- INVENTORY -------- Ion Engine Ion Engine Light Ion Engine Light Treads Sensor Array Propulsion Shielding Beam Cannon Light Cannon Maul [Rating: 8] Favorites ----------- Power Ion Engine Engine Ion Engine Propulsion Wheel Treads Light Treads Leg Aluminum Leg Wheel Wheel Utility Large Storage Unit Device Sensor Array Storage Large Storage Unit Weapon Light Assault Rifle Energy Gun Small Laser Ballistic Gun Light Assault Rifle Ballistic Cannon Light Cannon Build | -11 -10 -10 ------- Run | Scr Mat Min Slots Evolved . | . . . Power . | . . . Propulsion . | . . . Utility . | . . . Weapon . | . . . Parts Attached 14 | . 11 3 Power 3 | . 2 1 Engine 3 | . 2 1 Core . | . . . Reactor . | . . . Propulsion 5 | . 5 . Treads 3 | . 3 . Leg . | . . . Wheel 2 | . 2 . Hover . | . . . Flight . | . . . Utility 3 | . 3 . Device 1 | . 1 . Storage 2 | . 2 . Processor . | . . . Hackware . | . . . Protection . | . . . Artifact . | . . . Weapon 3 | . 1 2 Energy Gun 1 | . . 1 Energy Cannon . | . . . Ballistic Gun 1 | . 1 . Ballistic Cannon 1 | . . 1 Launcher . | . . . Special Weapon . | . . . Impact Weapon . | . . . Slashing Weapon . | . . . Piercing Weapon . | . . . Special Melee Weapon . | . . . Unidentified Prototypes . | . . . Parts Lost 5 | . 3 2 Power 1 | . 1 . Propulsion 1 | . 1 . Utility . | . . . Weapon 3 | . 1 2 Highest Loss Streak 2 | . 1 2 Average Slot Usage (%) 94 | . 93 100 Engine 14 | . 14 14 Treads 9 | . 8 14 Leg 3 | . 4 . Wheel 10 | . 10 14 Device 3 | . 3 . Storage 24 | . 23 28 Energy Gun 1 | . . 14 Ballistic Gun 24 | . 27 . Ballistic Cannon 1 | . . 14 Naked Turns . | . . . Heaviest Build 41 | 10 40 41 Greatest Support 40 | 20 40 10 Greatest Overweight (x) 13 | . 13 4 Average Overweight (x) 2 | . 1 3 Largest Inventory Capacity 16 | 6 16 16 Average Capacity 13 | 6 13 16 Most Carried 11 | 6 8 11 Average Carried 6 | 6 6 8 Final Capacity 16 | 6 16 16 Final Carried 11 | 6 7 11 Class Distribution -------------------- 100% | Mutant Dominant Class ---------------- Mutant | -10/Materials Mutant | -10/Mines Resources | -11 -10 -10 ----------- Run | Scr Mat Min Matter Collected 564 | 200 306 58 Remotely . | . . . Salvage Created 543 | . 490 53 Parts 43 | . 37 6 Haulers Intercepted . | . . . Recyclers Shooed 1 | . 1 . Parts Field Recycled . | . . . Retrieved Matter . | . . . Parts Self-Destructed . | . . . Prevented . | . . . Kills | -11 -10 -10 ------- Run | Scr Mat Min Combat Hostiles Destroyed 17 | . 14 3 Guns 15 | . 14 1 Cannons 2 | . . 2 Classes Destroyed 4 | . 3 1 Worker 1 | . . 1 Tunneler 1 | . 1 . Swarmer 6 | . 3 3 Grunt 11 | . 11 . Best Kill Streak 4 | . 4 3 Combat Bots Only 3 | . 3 3 Max Kills in Single Turn 1 | . 1 1 Gunslinging . | . . . Exploded . | . . . Melee . | . . . Uniques/NPCs Destroyed . | . . . Combat | -11 -10 -10 -------- Run | Scr Mat Min Damage Taken 988 | . 839 149 Core 257 | . 227 30 Absorbed by Shields . | . . . Core Remaining (%) 100 | 100 . . Volleys Fired 81 | . 71 10 Largest 2 | . 2 2 Hottest 75 | . 40 75 Shots Fired 161 | . 141 20 Gun 152 | . 141 11 Cannon 9 | . . 9 Launcher . | . . . Special . | . . . Kinetic 152 | . 141 11 Thermal 9 | . . 9 Explosive . | . . . Electromagnetic . | . . . Robot Hit Streak 13 | . 13 7 Robot Miss Streak 4 | . 3 4 Penetration Max . | . . . Secondary Targets 3 | . 3 . Max Gunslinging Chain 1 | . 1 . Shots Hit Robots 110 | . 101 9 Core Hits 41 | . 37 4 Critical Hits 2 | . 2 . Critical Kills 1 | . 1 . Critical Parts Destroyed 1 | . 1 . Melee Attacks . | . . . Impact . | . . . Slashing . | . . . Piercing . | . . . Sneak Attacks . | . . . Combat Hostiles . | . . . Follow-up Attacks . | . . . Damage Inflicted 1009 | . 872 137 Guns 930 | . 872 58 Cannons 79 | . . 79 Explosions . | . . . Melee . | . . . Ramming . | . . . Kinetic 951 | . 872 79 Thermal 58 | . . 58 Explosive . | . . . Electromagnetic . | . . . Impact . | . . . Slashing . | . . . Piercing . | . . . Highest Corruption . | . . . Average Corruption . | . . . Corruption Purged . | . . . Overload Shots . | . . . Overflow Damage 10 | . . 10 Projectiles 10 | . . 10 Explosions . | . . . Melee . | . . . Knockbacks 1 | . . 1 Impact . | . . . Kinetic 1 | . . 1 Secondary . | . . . Self-Inflicted Damage . | . . . Shots . | . . . Rammed . | . . . Targets Rammed . | . . . Kicked . | . . . Crushed . | . . . Highest Temperature 75 | . 24 75 Average Temperature 14 | . 8 28 Received Heat Transfer 417 | . 417 . Siege Activations . | . . . Robots Corrupted . | . . . Combat Hostiles . | . . . Parts Fried . | . . . Impact Corruptions . | . . . Robots Melted . | . . . Combat Hostiles . | . . . Parts Melted . | . . . Heat Transferred 125 | . . 125 Parts Sabotaged . | . . . Parts Stolen . | . . . Parts Stripped . | . . . Power Chain Reactions . | . . . Missiles Intercepted . | . . . Alert | -11 -10 -10 ------- Run | Scr Mat Min Peak Influence 186 | . 186 98 Initial 28 | . . 28 Average 47 | . 43 75 Maximum Alert Level . | . . . Low Security (%) 100 | 100 100 100 Level 1 . | . . . Level 2 . | . . . Level 3 . | . . . Level 4 . | . . . Level 5 . | . . . High Security . | . . . Max Security . | . . . Squads Dispatched 3 | . 3 . Investigation 2 | . 2 . Extermination . | . . . Reinforcement 1 | . 1 . Assault . | . . . Garrison . | . . . Intercept . | . . . Construction Impeded . | . . . Haulers Reinforced . | . . . Stealth | -11 -10 -10 --------- Run | Scr Mat Min Distress Signals 3 | . 2 1 Communications Jammed . | . . . Distress Signals . | . . . Times Spotted 27 | . 21 6 Peak Tracking Total 4 | . 4 3 Tactical Retreats 1 | . 1 . Traps | -11 -10 -10 ------- Run | Scr Mat Min Traps Triggered 2 | . 2 . Indirectly . | . . . Trap Hack Attempts . | . . . Triggered . | . . . Disarmed . | . . . Reprogrammed . | . . . Reused . | . . . Traps Extracted . | . . . Installed . | . . . Triggered 1 | . . 1 Machines | -11 -10 -10 ---------- Run | Scr Mat Min Machines Disabled . | . . . Max in Single Turn . | . . . Machines Sabotaged . | . . . Garrisons Compromised . | . . . Overloaded Fab Kills . | . . . Fab Network Shutdowns . | . . . Hacking | -11 -10 -10 --------- Run | Scr Mat Min Machines Accessed 6 | . 6 . Terminals 6 | . 6 . Fabricators . | . . . Repair Stations . | . . . Recycling Units . | . . . Scanalyzers . | . . . Garrison Access . | . . . Total Hacks 25 | . 25 . Successful 15 | . 15 . Failed 10 | . 10 . Catastrophic . | . . . Database Lockouts . | . . . Manual 16 | . 16 . Terminals 25 | . 25 . Fabricators . | . . . Repair Stations . | . . . Recycling Units . | . . . Scanalyzers . | . . . Garrison Access . | . . . Terminal Hacks 11 | . 11 . Robot Analysis 3 | . 3 . Prototype ID Bank 1 | . 1 . Unreport Threat 2 | . 2 . Locate Traps 1 | . 1 . Patrol Status 1 | . 1 . Zone Layout 3 | . 3 . Fabricator Hacks . | . . . Repair Station Hacks . | . . . Recycling Unit Hacks . | . . . Scanalyzer . | . . . Garrison Access Hacks . | . . . Unauthorized Hacks 4 | . 4 . Terminals 4 | . 4 . Track 2 | . 2 . Botnet 1 | . 1 . Operators 1 | . 1 . Fabricators . | . . . Repair Stations . | . . . Recycling Units . | . . . Scanalyzers . | . . . Garrison Access . | . . . Data Cores Recovered . | . . . Used . | . . . Hacking Detections 6 | . 6 . Full Trace Events 1 | . 1 . Feedback Events . | . . . Feedback Blocked . | . . . Robot Schematics Acquired . | . . . Robots Built . | . . . Matter . | . . . Time . | . . . Total Robot Build Rating . | . . . Part Schematics Acquired . | . . . Parts Built . | . . . Matter . | . . . Time . | . . . Total Part Build Rating . | . . . Parts Repaired . | . . . Time . | . . . Parts Recycled . | . . . Recycled Matter . | . . . Retrieved Matter . | . . . Retrieved Components . | . . . Parts Scanalyzed . | . . . Part Schematics Acquired . | . . . Parts Damaged . | . . . Bothacking | -11 -10 -10 ------------ Run | Scr Mat Min Used RIF Installer . | . . . Robots Hacked . | . . . Non-combat . | . . . Combat . | . . . Robot Hacks Applied . | . . . Relay Couplers Released . | . . . Robots Rewired . | . . . Allies Hacked . | . . . Hacks Repelled . | . . . Allies | -11 -10 -10 -------- Run | Scr Mat Min Total Allies . | . . . Largest Group . | . . . Highest-Rated Group . | . . . Highest-Rated Ally . | . . . Total Orders . | . . . Ally Attacks . | . . . Total Damage . | . . . Kills . | . . . Allies Corrupted . | . . . Allies Melted . | . . . Intel | -11 -10 -10 ------- Run | Scr Mat Min Robot Analysis Total 3 | . 3 . Derelict Logs Recovered . | . . . Drone Launches . | . . . Drone Recoveries . | . . . Exploration | -11 -10 -10 ------------- Run | Scr Mat Min Turns Passed 1433 | 5 1239 189 Spaces Moved 728 | 5 586 137 Core 45 | . 45 . Treads 205 | . 205 . Legs 118 | 5 113 . Wheels 360 | . 223 137 Hover . | . . . Flight . | . . . Fastest Speed 90 | 120 90 110 Average Speed 163 | 120 175 110 Slowest Speed 700 | 120 700 120 Overloaded Moves . | . . . Propulsion Burnouts . | . . . Robots Hopped . | . . . Cave-ins Triggered . | . . . Exploration Rate (%) 37 | 2 83 27 Regions Visited 2 Branch Regions 1 Pre-discovered Areas . | . . . Known Exits Taken . | . . . Unknown Exits Taken 2 | 1 1 . Scrap Searched 2 | . . 2 Spaces Dug . | . . . Terrain Destroyed . | . . . Melee . | . . . Projectile . | . . . AOE . | . . . Terrain Rammed . | . . . Walls Destroyed . | . . . Machines Disabled . | . . . Actions | -11 -10 -10 --------- Run | Scr Mat Min Total 835 | 4 676 155 Wait . | . . . Move 726 | 4 585 137 Hop . | . . . Pick Up 9 | . 4 5 Fast Attach 2 | . 2 . Attach 8 | . 6 2 Detach 2 | . 2 . Swap 4 | . 3 1 Drop 3 | . 3 . Fire 81 | . 71 10 Melee . | . . . Ram . | . . . Kick . | . . . Crush . | . . . Escape Stasis . | . . . Rewire . | . . . Trap . | . . . Miscellaneous . | . . . Route ------- -11/Scrapyard -10/Materials (discovered 3 exits: [*Mat x2] / [*Min]) -10/Mines History --------- Turn | Location | Event 1 | -11/Scrapyard | Discovered new exit (range 2) 6 | -11/Scrapyard | Entered Materials 115 | -10/Materials | Discovered new exit (range 7) 280 | -10/Materials | Discovered new exit (range 16) 300 | -10/Materials | Build established: Mutant 856 | -10/Materials | Core integrity fell below 50% 1183 | -10/Materials | Core integrity fell below 20% 1229 | -10/Materials | Discovered new exit (range 15) 1245 | -10/Materials | Entered Mines 1248 | -10/Mines | Met a Derelict bent on vengeance 1340 | -10/Mines | Assembled infested the area 1345 | -10/Mines | Assisted by a Guerilla fighting off Assembled 1434 | -10/Mines | Destroyed by as-71940 with Assembled Blade Last Messages --------------- 01311_ Found 25 Matter. 01312_ Acquired 19 matter. 01315_ Acquired Lgt. Cannon. 01317_ Acquired Beam Cannon. 01320_ Acquired Lgt. Ion Engine. 01322_ Searching scrap... 01322_ Found Sensor Array. 01322_ Found Med. Storage Unit. 01322_ Found 32 Matter. 01340_ ALERT: Infestation in the mines, dispatching Demolisher response squad. 01340_ K-01 Serf destroyed. 01344_ Acquired Wheel. 01345_ A derelict emerges from the shadows: "You need to get out of here! I've been tracking a group of Assembled to figure out where they're coming from, and they're closing on this area, come on!" 01348_ Acquired Wheel. 01349_ Acquired 4 matter. 01410_ 08-H3N(g): "WHERE ARE YOU, UNAWARE TRASH?! VENGEANCE UPON YOU!" 01424_ 08-H3N(g) destroyed. Map ----- +----------------------------------------------------+ | | | | | | | | | | | | | | | | | | | | | | | ????????????????????????????????? | | ????????????????????????????????? | | ????????????????????????????????? | | ????????????????????????????????? | | ????????????????????????????????? | | ????????????????????????????????? | | ?????????####???????????????????? | | ????????## ##??????????????????? | | ????????# ##?????????????????? | | ????????# #?????????????????? | | ???????## #?????????????????? | | ??????## #??????????????????? | | ?????## ###??????????????????? | | ????## ##????????????????????? | | ???## a@##?????????????????????? | | ??## aa##??????????????????????? | | ?## ##????????????????????#??? | | ?# #???????????????????? #??? | | ?# ##???????????# ###### #??? | | ?# ##??????????# #??? | | ?## ##?????????##### ####??? | | ??## %[############### #?????? | | ???## = % % #?????? | | ????## ################ #?????? | | ?????#####??????????????# #?????? | | ????????????????????????# #?????? | | ????????????????# ###### #?????? | | ???????????????# #?????? | | ????????? $ ###!###?????? | | ?????????????????????##%##??????? | | ????????????????????## * ##?????? | | ???????????????????## #?????? | | ???????????????##### #?????? | | ??????????????## ##?????? | | ??????????????# ####??????? | | ??????????????# ##?????????? | | ??????????????# ##?????????? | | ??????????????# #?????????? | | ????########### #?????????? | +----------------------------------------------------+ Best States ------------- Heat Dissipation 25 Energy Generation 10 Energy Capacity 250 Matter Stores 300 Matter Capacity 300 Sight Range 16 Robot Scan Range 10 Terrain Scan Density 10 Evasion (%) 42 Recoil Reduction 2 Item Schematics ----------------- None Robot Schematics ------------------ None Fabricated ------------ Nothing Alien Tech Used ----------------- None Achievements -------------- None Challenges ------------ None Game ------ Seed PropulsionDynamicRipper Manual? 0 Play Time 00:10:21 Cumulative 68.4 hours Start 2020.10.20 @ 03:11:23 End 2020.10.20 @ 03:20:19 Sessions 1 Manual Loads 0 Difficulty Rogue Special Mode None Game No. 108 Rogue 108 Adventurer 0 Explorer 0 Win Type - Total 1 Types 1/0/0/0/0/0/0/0/0 Lore% 30 Gallery% 48 Achievement% 36 Wizard Run 0 Options --------- ASCII 1 Keyboard 1 Movement Vi Keybinds 0 Fullscreen 2 Font 24/Proggy Map View 76x50 Tactical HUD 1 Map Filters SATURATION(70) Filters SATURATION(65)|SHIFT_HUE(15) Steam 1 RUN: d8471fec-ad76-4b50-bfab-b1e0933a5162